bitfinex/quotes_SOLUSD_20240822
["timestamp","ask_amount","ask_price","bid_price","bid_amount"]
[1724305903777,20.0,142.21,142.13,10.65]
[1724305904168,20.0,142.21,142.12,0.8338663]
[1724305904169,10.65,142.2,142.12,0.8338663]
[1724305909824,27.15759,142.21,142.12,0.8338663]
[1724305910099,27.15759,142.21,142.13,10.65]
[1724305910100,0.12549,142.2,142.13,10.65]
[1724305911174,7.0329,142.19,142.12,0.8338663]
[1724305911371,52.15789,142.2,142.12,0.8338663]
[1724305912476,7.15789,142.2,142.13,10.65]
[1724305912679,0.12549,142.2,142.13,10.65]
[1724305922311,17.6819,142.21,142.14,1.40696161]
[1724305922804,17.6819,142.21,142.13,10.65]
[1724305923808,7.15779,142.2,142.12,16.5292663]
[1724305924107,10.65,142.19,142.12,16.5292663]
[1724305926013,10.65,142.17,142.12,16.5292663]
[1724305927616,17.683,142.19,142.12,16.5292663]
[1724305927916,10.65,142.19,142.12,16.5292663]
[1724305931927,17.6828,142.19,142.12,16.5292663]
[1724305932104,45.12549,142.18,142.12,16.5292663]
[1724305932625,52.15879,142.18,142.12,16.5292663]
[1724305934222,52.15879,142.18,142.12,0.8338663]
[1724305940428,45.12549,142.18,142.12,0.8338663]
[1724305940635,32.6666,142.22,142.12,0.8338663]
[1724305940636,7.0327,142.2,142.12,0.8338663]
[1724305946632,10.65,142.19,142.12,0.8338663]
[1724305946817,17.6829,142.19,142.12,0.8338663]
[1724305947208,10.65,142.19,142.12,0.8338663]
[1724305950622,17.6828,142.19,142.12,0.8338663]
[1724305957151,52.15889,142.18,142.12,0.8338663]
[1724305958250,7.15889,142.18,142.12,0.8338663]
[1724305959258,0.12549,142.18,142.12,0.8338663]
[1724305964042,7.15889,142.18,142.12,0.8338663]
[1724305966743,17.6827,142.2,142.12,0.8338663]
[1724305985646,7.15749,142.21,142.13,15.6954]
[1724305985965,7.15749,142.21,142.13,26.3454]
[1724305986355,7.15749,142.21,142.14,1.40693555]
[1724305987567,14.55528107,142.22,142.13,26.3454]
[1724305987873,10.65,142.24,142.15,18.26126742]
[1724305988071,7.031,142.23,142.15,18.26126742]
[1724305988653,7.031,142.23,142.15,16.8544]
[1724305992969,7.15599,142.24,142.15,16.8544]
[1724305993159,45.12549,142.23,142.16,1.40668386]
[1724305993763,45.12549,142.23,142.17,15.2243]
[1724305995204,7.03,142.25,142.17,25.8743]
[1724305995494,7.03,142.25,142.18,1.40668338]
[1724305997291,7.03,142.25,142.17,25.8743]
[1724306000386,7.03,142.25,142.17,15.2243]
[1724306000558,17.80589,142.24,142.17,15.2243]
[1724306000767,7.0309,142.23,142.17,15.2243]
[1724306001169,17.80599,142.24,142.17,15.2243]
[1724306002404,10.65,142.22,142.17,15.2243]
[1724306007604,17.6814,142.22,142.17,15.2243]
[1724306010802,52.15729,142.21,142.15,6.2044]
[1724306010988,10.65,142.2,142.15,6.2044]
[1724306011505,62.80729,142.21,142.15,6.2044]
[1724306015114,0.12549,142.21,142.15,6.2044]
[1724306015432,7.0315,142.22,142.15,16.8544]
[1724306023134,7.0309,142.23,142.17,10.65]
[1724306025349,7.0304,142.24,142.17,10.65]
[1724306025515,20.0,142.23,142.17,10.65]
[1724306026607,7.0304,142.24,142.17,10.65]
[1724306026835,20.0,142.23,142.17,10.65]
[1724306028032,7.0304,142.24,142.17,10.65]
[1724306028333,7.0304,142.24,142.17,12.05655797]
[1724306028633,0.12549,142.25,142.18,1.40654829]
[1724306028822,7.0297,142.26,142.18,1.40654829]
[1724306029407,7.0297,142.26,142.19,6.2229]
[1724306030532,17.80449,142.27,142.2,1.40632559]
[1724306030717,17.80449,142.27,142.2,16.70282559]
[1724306032213,7.0285,142.28,142.2,16.70282559]
[1724306033446,7.0285,142.28,142.21,1.40609925]
[1724306035652,7.0285,142.28,142.2,15.2965]
[1724306039354,7.0289,142.27,142.2,15.2965]
[1724306039555,17.6789,142.27,142.2,15.2965]
[1724306040118,10.65,142.25,142.2,15.2965]
[1724306043151,17.6789,142.27,142.2,16.70287115]
[1724306046658,17.6789,142.27,142.2,15.2965]
[1724306047432,7.0289,142.27,142.21,1.40617091]
[1724306051070,14.22775704,142.29,142.22,17.1465]
[1724306051230,7.028,142.29,142.23,1.40597134]
[1724306051433,7.028,142.29,142.22,17.1465]
[1724306053396,7.028,142.29,142.23,1.40597323]
[1724306053665,7.028,142.29,142.22,17.1465]
[1724306053666,17.678,142.29,142.22,6.4965]
[1724306056839,52.0288,142.28,142.22,6.4965]
[1724306064163,62.6788,142.28,142.22,6.4965]
[1724306066598,7.0289,142.27,142.22,6.4965]
[1724306068507,62.6785,142.28,142.22,6.4965]
[1724306071404,10.65,142.26,142.18,6.0419]
[1724306071722,10.65,142.24,142.18,6.0419]
[1724306079096,12.08241374,142.28,142.19,10.65]
[1724306079407,7.0294,142.26,142.19,10.65]
[1724306082414,37.679,142.27,142.19,10.65]
[1724306086485,27.029,142.27,142.19,10.65]
[1724306088509,27.029,142.27,142.2,1.40623557]
[1724306090325,27.029,142.27,142.19,10.65]
[1724306090989,7.029,142.27,142.19,10.65]
[1724306091912,11.88405484,142.28,142.2,16.60243491]
[1724306092116,7.15399,142.28,142.2,16.60243491]
[1724306093191,7.0289,142.27,142.2,15.1962]
[1724306093423,7.15389,142.28,142.2,15.1962]
[1724306094613,7.15389,142.28,142.21,1.40613646]
[1724306096316,7.15389,142.28,142.21,1.40610579]
[1724306096638,7.0284,142.28,142.21,12.05610579]
[1724306097110,7.0278,142.3,142.22,6.2037]
[1724306101439,17.80249,142.31,142.23,15.6954]
[1724306101611,20.12549,142.3,142.23,15.6954]
[1724306101815,5.36601809,142.29,142.23,15.6954]
[1724306102013,5.36601809,142.28,142.23,15.6954]
[1724306102210,5.36601809,142.27,142.23,15.6954]
[1724306102427,5.36601809,142.26,142.23,15.6954]
[1724306102640,5.36601809,142.25,142.23,15.6954]
[1724306102843,5.36601809,142.24,142.23,15.6954]
[1724306103150,20.0,142.3,142.23,26.3454]
[1724306103454,5.36615777,142.29,142.23,26.3454]
[1724306103944,5.36615777,142.28,142.23,26.3454]
[1724306104247,5.36615777,142.27,142.23,26.3454]
[1724306104453,5.36615777,142.26,142.23,26.3454]
[1724306104644,20.0,142.3,142.24,1.40586478]
[1724306104845,5.36596845,142.29,142.23,26.3454]
[1724306105047,5.36596845,142.28,142.23,26.3454]
[1724306105245,5.36596845,142.27,142.23,26.3454]
[1724306105549,20.0,142.3,142.24,1.40586293]
[1724306105858,5.36610808,142.29,142.23,26.3454]
[1724306106035,5.36610808,142.28,142.23,26.3454]
[1724306106236,5.36610808,142.27,142.23,26.3454]
[1724306106440,20.0,142.3,142.23,26.3454]
[1724306106656,20.0,142.3,142.24,1.40586214]
[1724306106831,5.36611865,142.29,142.23,26.3454]
[1724306107041,5.36611865,142.29,142.24,1.40586082]
[1724306107252,5.36611865,142.28,142.24,1.40586082]
[1724306107460,7.19975704,142.32,142.25,10.65]
[1724306107757,5.36560948,142.31,142.26,1.40566872]
[1724306107962,5.36560948,142.3,142.26,1.40566872]
[1724306108172,17.6762,142.33,142.26,1.40566872]
[1724306108745,17.6762,142.33,142.25,1.40567476]
[1724306109153,7.0257,142.34,142.25,1.40567476]
[1724306109359,20.0,142.33,142.24,10.65]
[1724306110846,27.0259,142.33,142.24,10.65]
[1724306113459,27.0259,142.33,142.21,20.0]
[1724306113460,23.98734191,142.36,142.29,10.65]
[1724306113780,7.34798131,142.36,142.33,10.65]
[1724306113984,1.2487,142.41,142.34,7.68174205]
[1724306115256,1.2487,142.41,142.34,6.2769]
[1724306116363,1.2487,142.41,142.34,7.68170497]
[1724306117903,1.2487,142.41,142.34,44.40270304]
[1724306118999,1.2487,142.41,142.34,42.99789807]
[1724306119405,1.2487,142.41,142.35,48.77565619]
[1724306119595,1.2487,142.41,142.36,1.4045704]
[1724306119908,1.2487,142.41,142.36,38.12556847]
[1724306124106,1.2487,142.41,142.36,36.72099807]
[1724306126416,1.2487,142.41,142.35,10.65]
[1724306128395,1.2487,142.41,142.36,1.40458254]
[1724306128595,1.2487,142.41,142.35,10.65]
[1724306131028,1.2487,142.41,142.36,1.40455951]
[1724306132710,1.2487,142.41,142.35,10.65]
[1724306133522,1.2487,142.41,142.36,1.40455995]
[1724306135014,1.2487,142.41,142.35,10.65]
[1724306137406,1.2487,142.41,142.34,16.9269]
[1724306138517,1.2487,142.41,142.35,1.40467773]
[1724306138727,1.2487,142.41,142.34,16.9269]
[1724306139407,1.2487,142.41,142.35,1.40464918]
[1724306139610,1.2487,142.41,142.36,1.40463157]
[1724306140012,1.2487,142.41,142.34,10.65]
[1724306143713,1.2487,142.41,142.35,1.40469506]
[1724306143915,1.2487,142.41,142.36,1.40457747]
[1724306144314,1.2487,142.41,142.36,12.05457747]
[1724306145528,1.2487,142.41,142.36,10.65]
[1724306149815,1.2487,142.41,142.37,1.4044794]
[1724306150529,1.2487,142.41,142.36,10.65]
[1724306150736,1.2487,142.41,142.37,1.4044752]
[1724306151547,1.2487,142.41,142.36,10.65]
[1724306155266,1.2487,142.41,142.37,0.12549]
[1724306163169,1.2487,142.41,142.37,1.52983033]
[1724306163477,1.2487,142.41,142.38,10.65]
[1724306163775,1.2487,142.41,142.39,1.40428186]
[1724306164978,1.2487,142.41,142.38,10.65]
[1724306166354,1.2487,142.41,142.32,20.0]
[1724306166551,1.2487,142.41,142.35,10.65]
[1724306166744,1.2487,142.41,142.36,20.0]
[1724306168583,1.2487,142.41,142.37,1.40446922]
[1724306169277,1.2487,142.41,142.37,12.05446922]
[1724306170072,1.2487,142.41,142.37,10.65]
[1724306174788,1.2487,142.41,142.38,21.4043211]
[1724306177989,1.2487,142.41,142.38,20.0]
[1724306179276,7.8219,142.41,142.35,11.07028973]
[1724306179474,7.8219,142.41,142.36,20.0]
[1724306179882,5.36137747,142.4,142.36,20.0]
[1724306180197,5.36137747,142.39,142.36,20.0]
[1724306180379,5.36137747,142.38,142.36,20.0]
[1724306180574,7.8219,142.41,142.36,20.0]
[1724306180575,5.36137747,142.37,142.36,20.0]
[1724306180884,7.8219,142.41,142.36,20.0]
[1724306184405,15.3057,142.4,142.29,45.34871811]
[1724306184576,15.3057,142.4,142.33,10.65]
[1724306186265,15.3057,142.4,142.34,20.0]
[1724306189703,15.3057,142.4,142.33,10.65]
[1724306191105,35.0844,142.52,142.33,10.65]
[1724306191306,10.65,142.41,142.37,7.0236]
[1724306192892,10.65,142.41,142.38,7.0232]
[1724306194109,26.7672,142.41,142.38,7.0232]
[1724306196717,26.7672,142.41,142.36,17.5602]
[1724306198208,33.7893,142.41,142.37,7.0239]
[1724306198909,16.1172,142.41,142.38,7.0234]
[1724306199113,16.1172,142.41,142.39,7.0229]
[1724306202303,16.1172,142.41,142.4,7.0224]
[1724306202608,17.6706,142.44,142.4,7.0224]
[1724306202609,16.1873,142.44,142.4,7.0224]
[1724306204827,26.8373,142.44,142.4,7.0224]
[1724306205009,33.8578,142.44,142.4,7.0224]
[1724306213031,16.1873,142.44,142.41,7.0218]
[1724306220942,33.858,142.44,142.4,24.5784]
[1724306221118,0.12549,142.43,142.4,24.5784]
[1724306221930,33.858,142.44,142.4,24.5784]
[1724306227849,23.208,142.44,142.4,24.5784]
[1724306229044,17.671,142.43,142.4,17.5561]
[1724306230437,17.6711,142.43,142.39,7.0228]
[1724306230645,10.65,142.41,142.38,7.0233]
[1724306233856,7.14699,142.42,142.38,7.0233]
[1724306235265,17.6712,142.43,142.39,7.0229]
[1724306236052,7.0212,142.43,142.39,7.0229]
[1724306236667,7.0212,142.43,142.39,24.5801]
[1724306236845,23.33339,142.44,142.4,7.0224]
[1724306237542,7.0206,142.44,142.4,7.0224]
[1724306237937,7.0231,142.39,142.35,17.5952675]
[1724306238155,17.6738,142.38,142.31,21.8666]
[1724306238355,17.6738,142.38,142.33,24.5896]
[1724306239471,5.36332626,142.37,142.33,24.5896]
[1724306239663,5.36332626,142.36,142.33,24.5896]
[1724306239841,17.6738,142.38,142.33,24.5896]
[1724306240040,5.36335724,142.37,142.33,24.5896]
[1724306240350,5.36335724,142.36,142.33,24.5896]
[1724306240556,5.36335724,142.35,142.33,24.5896]
[1724306240755,17.6738,142.38,142.34,7.0254]
[1724306240935,5.3632247,142.37,142.34,7.0254]
[1724306241140,5.3632247,142.36,142.34,7.0254]
[1724306241443,5.3632247,142.35,142.34,8.43043921]
[1724306241646,5.3632247,142.35,142.34,7.0254]
[1724306246684,17.6731,142.39,142.35,7.0249]
[1724306246843,5.36302202,142.38,142.35,7.0249]
[1724306247047,5.36302202,142.37,142.35,7.0249]
[1724306247277,5.36302202,142.36,142.35,7.0249]
[1724306247479,17.6731,142.39,142.35,7.0249]
[1724306247480,5.36302202,142.38,142.35,7.0249]
[1724306247644,5.36302202,142.37,142.35,7.0249]
[1724306247849,5.36302202,142.36,142.35,7.0249]
[1724306248555,7.022,142.41,142.36,24.5849]
[1724306248776,25.36211206,142.4,142.36,24.5849]
[1724306248947,5.36211206,142.39,142.36,24.5849]
[1724306249152,5.36211206,142.38,142.36,24.5849]
[1724306249354,37.6724,142.4,142.36,17.561]
[1724306251075,37.6724,142.4,142.35,7.0248]
[1724306266599,7.0231,142.39,142.34,7.0252]
[1724306271221,7.0222,142.41,142.36,7.0243]
[1724306271390,17.6722,142.41,142.36,8.42904172]
[1724306271707,15.4803,142.43,142.38,7.0233]
[1724306271878,15.4803,142.43,142.39,1.40440005]
[1724306272083,15.4803,142.43,142.39,8.42730005]
[1724306273006,15.4803,142.43,142.39,7.0229]
[1724306282332,10.65,142.42,142.39,7.0229]
[1724306287739,10.65,142.42,142.37,24.5828]
[1724306287922,10.65,142.4,142.37,24.5828]
[1724306291352,22.5014,142.43,142.37,24.5828]
[1724306291555,10.65,142.41,142.37,24.5828]
[1724306296643,10.65,142.41,142.38,8.42781902]
[1724306296856,22.5014,142.43,142.38,8.42781902]
[1724306296857,33.1514,142.43,142.38,8.42781902]
[1724306299343,33.1514,142.43,142.38,7.0232]
[1724306301382,10.65,142.41,142.37,24.5832]
[1724306301873,10.65,142.41,142.38,7.0234]
[1724306302767,10.65,142.41,142.37,24.583]
[1724306304953,17.672,142.41,142.37,17.5593]
[1724306307169,10.65,142.41,142.37,24.5832]
[1724306310570,10.65,142.41,142.38,7.0234]
[1724306317092,10.65,142.41,142.37,24.5831]
[1724306322387,22.5014,142.43,142.38,7.0234]
[1724306322612,10.65,142.42,142.38,7.0234]
[1724306328502,22.5014,142.43,142.38,7.0234]
[1724306328812,10.65,142.42,142.38,7.0234]
[1724306330592,0.12549,142.41,142.38,7.0234]
[1724306332622,0.12549,142.41,142.39,7.0228]
[1724306332922,30.65,142.43,142.39,7.0228]
[1724306333216,0.12549,142.42,142.39,7.0228]
[1724306334613,10.65,142.43,142.4,7.0223]
[1724306336999,6.2984,142.48,142.41,17.5546]
[1724306337424,7.0191,142.47,142.41,24.5764]
[1724306337726,10.65,142.46,142.41,24.5764]
[1724306338402,0.12549,142.45,142.41,24.5764]
[1724306338602,10.65,142.44,142.41,24.5764]
[1724306339238,10.65,142.42,142.41,17.5546]
[1724306342135,10.65,142.42,142.4,7.0223]
[1724306349329,10.65,142.42,142.39,7.0228]
[1724306375076,0.12549,142.43,142.39,7.0228]
[1724306375371,10.77549,142.43,142.39,7.0228]
[1724306380378,0.12549,142.43,142.4,7.0221]
[1724306381390,0.12549,142.43,142.39,7.0227]
[1724306384000,0.12549,142.43,142.4,7.0223]
[1724306384196,0.12549,142.44,142.4,8.4267454]
[1724306384392,17.6704,142.45,142.4,8.4267454]
[1724306385674,17.6704,142.45,142.42,7.0214]
[1724306385675,10.65,142.45,142.42,7.0214]
[1724306386169,10.65,142.45,142.4,17.5558]
[1724306387091,10.65,142.45,142.42,7.0214]
[1724306387626,10.65,142.45,142.41,7.0217]
[1724306387972,15.19119,142.46,142.41,7.0217]
[1724306388180,25.84119,142.46,142.41,7.0217]
[1724306389603,0.12549,142.46,142.42,7.0211]
[1724306389803,10.77549,142.47,142.43,1.404098]
[1724306390179,12.13640373,142.48,142.43,7.0209]
[1724306390380,10.65,142.47,142.43,7.0209]
[1724306390885,10.65,142.47,142.42,24.5748]
[1724306392216,0.12549,142.46,142.42,24.5748]
[1724306392518,10.65,142.45,142.42,24.5748]
[1724306393410,10.65,142.45,142.42,17.5535]
[1724306398310,0.12549,142.46,142.42,17.5535]
[1724306398611,10.65,142.45,142.42,24.5748]
[1724306399000,10.65,142.45,142.39,17.5565]
[1724306399204,0.12549,142.44,142.39,17.5565]
[1724306399403,0.12549,142.44,142.41,7.0219]
[1724306400285,0.12549,142.44,142.39,17.5565]
[1724306400286,0.12549,142.44,142.4,7.0222]
[1724306402324,0.12549,142.44,142.4,8.42652353]
[1724306403523,0.12549,142.44,142.41,7.0219]
[1724306404400,0.12549,142.44,142.4,7.0222]
[1724306406425,10.65,142.41,142.37,46.762695]
[1724306406738,10.65,142.39,142.37,46.762695]
[1724306410252,17.673,142.39,142.37,46.762695]
[1724306410431,0.12549,142.38,142.37,46.762695]
[1724306411446,10.77549,142.38,142.37,46.762695]
[1724306414040,17.79889,142.38,142.37,46.762695]
[1724306414343,10.77549,142.38,142.37,46.762695]
[1724306418349,0.12549,142.38,142.37,46.762695]
[1724306418678,10.77549,142.38,142.37,46.762695]
[1724306419669,0.12549,142.38,142.37,46.762695]
[1724306420064,10.65,142.4,142.37,46.762695]
[1724306420278,0.12549,142.39,142.37,46.762695]
[1724306421857,16.2002,142.41,142.37,53.786495]
[1724306423267,10.65,142.4,142.37,46.762695]
[1724306425673,10.65,142.4,142.37,53.786395]
[1724306426003,0.12549,142.41,142.37,53.786395]
[1724306430106,10.65,142.4,142.37,53.786395]
[1724306432878,10.65,142.4,142.37,46.762695]
[1724306433802,10.65,142.38,142.37,46.762695]
[1724306435405,7.14749,142.41,142.37,46.762695]
[1724306435406,10.65,142.4,142.37,46.762695]
[1724306442516,7.14749,142.41,142.37,46.762695]
[1724306442690,10.77549,142.4,142.37,53.786595]
[1724306444189,10.65,142.4,142.37,53.786595]
[1724306444890,7.0213,142.43,142.38,8.42792577]
[1724306445106,10.77549,142.42,142.38,8.42792577]
[1724306445921,10.77549,142.42,142.38,7.0233]
[1724306446721,17.79719,142.42,142.37,71.345995]
[1724306446926,10.65,142.4,142.37,71.345995]
[1724306447226,10.65,142.41,142.37,71.345995]
[1724306448217,10.65,142.41,142.38,8.4279371]
[1724306450654,10.65,142.41,142.38,7.0234]
[1724306451312,10.65,142.41,142.37,71.345895]
[1724306451564,10.65,142.39,142.37,71.345895]
[1724306455326,10.65,142.41,142.37,71.345895]
[1724306455730,10.65,142.41,142.38,1.40461248]
[1724306456538,10.65,142.41,142.38,8.42801248]
[1724306460224,10.65,142.41,142.38,1.40461248]
[1724306460527,10.65,142.41,142.38,7.0233]
[1724306464326,10.65,142.39,142.37,71.345995]
[1724306466748,10.65,142.39,142.37,64.322195]
[1724306468041,10.65,142.39,142.37,46.762695]
[1724306468269,0.12549,142.38,142.37,46.762695]
[1724306469159,10.65,142.39,142.37,46.762695]
[1724306469357,0.12549,142.4,142.37,46.762695]
[1724306469533,10.77549,142.4,142.37,46.762695]
[1724306473573,17.79789,142.4,142.37,46.762695]
[1724306474470,10.65,142.38,142.37,46.762695]
[1724306476171,10.77549,142.4,142.37,46.762695]
[1724306478072,21.81816484,142.44,142.38,1.40462952]
[1724306478284,17.6715,142.42,142.37,53.786495]
[1724306478776,7.022,142.41,142.37,46.762695]
[1724306478959,10.65,142.4,142.37,46.762695]
[1724306480077,10.65,142.4,142.37,53.786595]
[1724306480379,10.65,142.4,142.37,46.762695]
[1724306492092,0.12549,142.41,142.37,55.1910622]
[1724306492289,17.6716,142.42,142.37,55.1910622]
[1724306495307,17.6716,142.42,142.37,53.786395]
[1724306496001,6.24526484,142.44,142.38,18.96288094]
[1724306496175,10.65,142.43,142.38,18.96288094]
[1724306496899,12.58326484,142.47,142.4,17.5557]
[1724306497196,10.65,142.45,142.41,1.40417895]
[1724306498173,10.65,142.45,142.41,8.42577895]
[1724306503303,10.65,142.45,142.41,7.0216]
[1724306504327,10.65,142.43,142.4,17.5557]
[1724306504525,10.65,142.43,142.4,24.5778]
[1724306505296,10.65,142.43,142.41,7.0218]
[1724306512219,10.65,142.43,142.4,17.5557]
[1724306512419,0.12549,142.42,142.39,7.0225]
[1724306512615,10.65,142.41,142.38,7.0233]
[1724306517407,10.65,142.41,142.37,64.321395]
[1724306517638,10.65,142.39,142.37,46.762695]
[1724306519211,0.12549,142.4,142.37,46.762695]
[1724306519441,10.77549,142.4,142.37,46.762695]
[1724306521734,10.77549,142.4,142.37,53.786595]
[1724306522041,10.65,142.4,142.37,53.786595]
[1724306522424,10.65,142.4,142.37,55.19117809]
[1724306522940,10.65,142.4,142.37,53.786595]
[1724306529750,90.297485,142.45,142.37,53.786595]
[1724306529751,17.671,142.43,142.38,8.42787657]
[1724306529938,0.12549,142.42,142.38,8.42787657]
[1724306531257,17.671,142.43,142.38,8.42787657]
[1724306531636,10.65,142.43,142.39,7.0228]
[1724306531955,10.65,142.43,142.4,1.40435734]
[1724306532255,10.65,142.43,142.4,8.42675734]
[1724306532851,10.65,142.43,142.4,7.0224]
[1724306533050,10.65,142.43,142.41,1.40427582]
[1724306533364,10.65,142.43,142.4,8.42665458]
[1724306533658,10.65,142.43,142.4,7.0224]
[1724306538368,10.65,142.45,142.42,7.0214]
[1724306539374,10.65,142.45,142.43,1.40414435]
[1724306539555,0.12549,142.46,142.43,1.40414435]
[1724306539759,0.12549,142.46,142.42,7.0214]
[1724306542862,0.12549,142.46,142.43,1.40405611]
[1724306544071,0.12549,142.46,142.42,7.0214]
[1724306544366,21.34106484,142.49,142.42,7.0214]
[1724306544367,10.65,142.48,142.44,7.0203]
[1724306544755,0.12549,142.47,142.44,7.0203]
[1724306544942,0.12549,142.47,142.43,8.42483506]
[1724306545142,0.12549,142.47,142.43,1.40403506]
[1724306545343,0.12549,142.47,142.44,7.02]
[1724306546151,10.65,142.48,142.45,1.40392851]
[1724306546355,10.65,142.48,142.45,8.42382851]
[1724306546581,10.65,142.48,142.45,7.0199]
[1724306550083,10.65,142.48,142.44,7.0203]
[1724306550287,10.65,142.48,142.45,1.40382848]
[1724306550876,0.12549,142.49,142.45,1.40382848]
[1724306552509,10.65,142.49,142.45,1.40382848]
[1724306552795,10.65,142.49,142.46,7.0194]
[1724306554585,10.65,142.49,142.45,8.42362848]
[1724306554797,10.65,142.49,142.45,7.0198]
[1724306554971,10.65,142.49,142.45,8.42353083]
[1724306559010,7.14319,142.5,142.45,8.42353083]
[1724306559210,10.65,142.49,142.45,8.42353083]
[1724306560817,10.65,142.49,142.45,7.0198]
[1724306562318,10.65,142.49,142.46,1.40373193]
[1724306562825,10.65,142.49,142.45,8.42352946]
[1724306563403,10.65,142.49,142.46,8.42312936]
[1724306564321,10.77549,142.5,142.46,8.42312936]
[1724306569202,10.77549,142.5,142.46,7.0194]
[1724306570738,10.77549,142.5,142.47,1.40365357]
[1724306571629,10.77549,142.5,142.46,7.0194]
[1724306571832,17.79299,142.5,142.46,7.0194]
[1724306572934,10.77549,142.5,142.46,7.0194]
[1724306574136,10.77549,142.5,142.46,8.42305392]
[1724306575336,10.77549,142.5,142.46,7.0194]
[1724306576928,17.79309,142.5,142.46,7.0194]
[1724306581829,7.14309,142.5,142.46,7.0194]
[1724306582144,17.79309,142.5,142.46,7.0194]
[1724306582638,10.77549,142.5,142.46,7.0194]
[1724306582946,10.77549,142.5,142.47,1.40372363]
[1724306584717,10.77549,142.5,142.47,8.42272363]
[1724306584932,10.65,142.5,142.47,7.019]
[1724306585141,10.65,142.5,142.47,8.42259322]
[1724306586219,7.32182258,142.51,142.47,8.42259322]
[1724306588333,7.32182258,142.51,142.48,7.0184]
[1724306588534,10.77549,142.52,142.48,7.0184]
[1724306590241,17.79199,142.52,142.48,7.0184]
[1724306592745,17.79199,142.52,142.47,8.42230191]
[1724306597151,10.77549,142.52,142.48,7.0184]
[1724306597345,6.24526484,142.53,142.49,1.40347532]
[1724306597550,10.65,142.53,142.49,7.0178]
[1724306598150,10.65,142.53,142.49,8.42117635]
[1724306599755,10.65,142.53,142.49,1.40337635]
[1724306599955,0.12549,142.54,142.5,17.5432]
[1724306601271,0.12549,142.54,142.51,1.40330651]
[1724306601452,17.6646,142.56,142.51,8.42030651]
[1724306601654,10.65,142.56,142.52,1.40311536]
[1724306601838,17.6646,142.56,142.52,1.40311536]
[1724306602340,17.6646,142.56,142.51,7.017]
[1724306602733,7.0146,142.56,142.51,7.017]
[1724306602936,17.6646,142.56,142.52,1.40312185]
[1724306603139,10.65,142.54,142.5,24.5606]
[1724306603854,10.65,142.54,142.5,25.96381946]
[1724306604139,0.12549,142.55,142.5,25.96381946]
[1724306604340,10.65,142.55,142.5,25.96381946]
[1724306605237,10.65,142.55,142.5,24.5606]
[1724306606481,10.65,142.55,142.51,7.017]
[1724306607285,7.0146,142.56,142.52,1.40312232]
[1724306607498,17.6646,142.56,142.52,1.40312232]
[1724306608573,17.6646,142.56,142.51,7.017]
[1724306609084,17.6646,142.56,142.51,8.42012214]
[1724306609459,7.0146,142.56,142.52,1.40312214]
[1724306609666,10.65,142.55,142.52,1.40312214]
[1724306611688,7.0146,142.56,142.52,1.40312214]
[1724306612285,10.65,142.55,142.51,7.017]
[1724306613190,10.65,142.55,142.52,1.40310323]
[1724306614991,10.65,142.55,142.51,7.017]
[1724306617176,10.65,142.55,142.52,7.0165]
[1724306622819,10.65,142.55,142.51,7.0168]
[1724306628525,7.13969,142.57,142.52,7.0165]
[1724306628691,10.77549,142.56,142.52,24.5573]
[1724306630715,0.12549,142.56,142.52,17.5411]
[1724306630902,10.77549,142.56,142.52,24.5571]
[1724306631897,15.3561,142.59,142.52,17.5411]
[1724306632103,17.6636,142.58,142.53,7.0158]